fUSD/lending_fUSD_20250512
["ID","MTS","AMOUNT","RATE_DAILY","PERIOD"]
[360870859,1747090259018,-400.0,0.00013808,2]
[360870860,1747090259028,-499.68,0.00013808,2]
[360870861,1747090259038,-400.0,0.00013808,2]
[360870862,1747090259048,-936.95,0.00013808,2]
[360870863,1747090259057,-400.0,0.00013808,2]
[360870864,1747090259066,-400.0,0.00013808,2]
[360870865,1747090259076,-848.11,0.00013808,2]
[360870866,1747090259085,-400.0,0.00013808,2]
[360870867,1747090259095,-400.0,0.00013808,2]
[360870868,1747090259104,-1083.17,0.00013808,2]
[360870869,1747090259113,-400.0,0.00013808,2]
[360870870,1747090259122,-400.0,0.00013808,2]
[360870871,1747090259132,-926.94,0.00013808,2]
[360870872,1747090259141,-420.95,0.00013808,2]
[360870873,1747090259150,-400.0,0.00013808,2]
[360870874,1747090259160,-400.0,0.00013808,2]
[360870875,1747090259169,-400.0,0.00013808,2]
[360870876,1747090259178,-400.0,0.00013808,2]
[360870877,1747090259188,-400.0,0.00013808,2]
[360870878,1747090259197,-400.0,0.00013808,2]
[360870879,1747090259207,-400.0,0.00013808,2]
[360870880,1747090259217,-225.33,0.00013808,2]
[360870881,1747090259226,-603.5,0.00013808,2]
[360870882,1747090259236,-576.3,0.00013808,2]
[360870883,1747090259245,-400.0,0.00013808,2]
[360870884,1747090259254,-400.0,0.00013808,2]
[360870885,1747090259263,-400.0,0.00013808,2]
[360870886,1747090259273,-400.0,0.00013808,2]
[360870887,1747090259282,-463.71290251,0.00013808,2]
[360870888,1747090259291,-400.0,0.00013808,2]
[360870889,1747090259300,-400.0,0.00013808,2]
[360870890,1747090259310,-400.0,0.00013808,2]
[360870891,1747090259319,-400.0,0.00013808,2]
[360870892,1747090259328,-400.0,0.00013808,2]
[360870893,1747090259338,-400.0,0.00013808,2]
[360870894,1747090259347,-400.0,0.00013808,2]
[360870895,1747090259356,-400.0,0.00013808,2]
[360870896,1747090259365,-400.0,0.00013808,2]
[360870897,1747090259375,-400.0,0.00013808,2]
[360870898,1747090259384,-400.0,0.00013808,2]
[360870899,1747090259394,-459.63589634,0.00013808,2]
[360870900,1747090259403,-400.0,0.00013808,2]
[360870901,1747090259413,-400.0,0.00013808,2]
[360870902,1747090259422,-400.0,0.00013808,2]
[360870903,1747090259431,-400.0,0.00013808,2]
[360870904,1747090259441,-400.0,0.00013808,2]
[360870905,1747090259450,-400.0,0.00013808,2]
[360870906,1747090259460,-400.0,0.00013808,2]
[360870907,1747090259470,-501.55,0.00013808,2]
[360870908,1747090259479,-400.0,0.00013808,2]
[360870909,1747090259489,-400.0,0.00013808,2]
[360870910,1747090259498,-400.0,0.00013808,2]
[360870911,1747090259508,-400.0,0.00013808,2]
[360870912,1747090259517,-400.0,0.00013808,2]
[360870913,1747090259526,-400.0,0.00013808,2]
[360870914,1747090259536,-400.0,0.00013808,2]
[360870915,1747090259546,-400.0,0.00013808,2]
[360870916,1747090259556,-400.0,0.00013808,2]
[360870917,1747090259565,-400.0,0.00013808,2]
[360870918,1747090259574,-400.0,0.00013808,2]
[360870919,1747090259584,-400.0,0.00013808,2]
[360870920,1747090259593,-400.0,0.00013808,2]
[360870921,1747090259602,-460.50678016,0.00013808,2]
[360870922,1747090259612,-355.6896416,0.00013808,2]
[360870923,1747090259621,-400.0,0.00013808,2]
[360870924,1747090259631,-400.0,0.00013808,2]
[360870925,1747090259640,-400.0,0.00013808,2]
[360870926,1747090259650,-400.0,0.00013808,2]
[360870927,1747090259660,-317.35552446,0.00013808,2]
[360870928,1747090259670,-400.0,0.00013808,2]
[360870929,1747090259679,-400.0,0.00013808,2]
[360870930,1747090259688,-400.0,0.00013808,2]
[360870931,1747090259698,-333.68632688,0.00013808,2]
[360870932,1747090259707,-400.0,0.00013808,2]
[360870933,1747090259716,-400.0,0.00013808,2]
[360870934,1747090259726,-400.0,0.00013808,2]
[360870935,1747090259735,-400.0,0.00013808,2]
[360870936,1747090259745,-400.0,0.00013808,2]
[360870937,1747090259754,-226.26,0.00013808,2]
[360870938,1747090259763,-307.72253798,0.00013808,2]
[360870939,1747090259772,-400.0,0.00013808,2]
[360870940,1747090259782,-22191.74,0.00013808,2]
[360870941,1747090259792,-400.0,0.00013808,2]
[360870942,1747090259801,-400.0,0.00013808,2]
[360870943,1747090259811,-400.0,0.00013808,2]
[360870944,1747090259820,-1077.72,0.00013808,2]
[360870945,1747090259830,-400.0,0.00013808,2]
[360870946,1747090259839,-400.0,0.00013808,2]
[360870947,1747090259849,-400.0,0.00013808,2]
[360870948,1747090259858,-400.0,0.00013808,2]
[360870949,1747090259868,-341.25834605,0.00013808,2]
[360870950,1747090259877,-1242.42,0.00013808,2]
[360870951,1747090259887,-8204.41,0.00013808,2]
[360870952,1747090259896,-400.0,0.00013808,2]
[360870953,1747090259905,-1722.69,0.00013808,2]
[360870954,1747090259914,-400.0,0.00013808,2]
[360870955,1747090259923,-400.0,0.00013808,2]
[360870956,1747090259932,-9161.74,0.00013808,2]
[360870957,1747090259942,-400.0,0.00013808,2]
[360870958,1747090259951,-400.0,0.00013808,2]
[360870959,1747090259961,-400.0,0.00013808,2]
[360870960,1747090259970,-2383.23,0.00013808,2]
[360870961,1747090259980,-400.0,0.00013808,2]
[360870962,1747090259991,-400.0,0.00013808,2]
[360870963,1747090260001,-1779.51,0.00013808,2]
[360870964,1747090260016,-400.0,0.00013808,2]
[360870965,1747090260026,-501.77,0.00013808,2]
[360870966,1747090260035,-400.0,0.00013808,2]
[360870967,1747090260046,-1393.58,0.00013808,2]
[360870968,1747090260056,-400.0,0.00013808,2]
[360870969,1747090260065,-1227.91,0.00013808,2]
[360870970,1747090260075,-250.0,0.00013808,2]
[360870971,1747090260088,-479.64,0.00013808,2]
[360870972,1747090260098,-3610.95,0.00013808,2]
[360870973,1747090260107,-400.0,0.00013808,2]
[360870974,1747090260116,-400.0,0.00013808,2]
[360870975,1747090260127,-519.74,0.00013808,2]
[360870976,1747090260136,-685.31,0.00013808,2]
[360870977,1747090260146,-400.0,0.00013808,2]
[360870978,1747090260156,-400.0,0.00013808,2]
[360870979,1747090260165,-400.0,0.00013808,2]
[360870980,1747090260175,-400.0,0.00013808,2]
[360870981,1747090260184,-150.0,0.00013808,2]
[360870982,1747090260193,-400.0,0.00013808,2]
[360870983,1747090260203,-1340.79,0.00013808,2]
[360870984,1747090260213,-400.0,0.00013808,2]
[360870985,1747090260224,-400.0,0.00013808,2]
[360870986,1747090260234,-1784.89,0.00013808,2]
[360870987,1747090260244,-400.0,0.00013808,2]
[360870988,1747090260255,-400.0,0.00013808,2]
[360870989,1747090260264,-400.0,0.00013808,2]
[360870990,1747090260274,-1351.76,0.00013808,2]
[360870991,1747090260284,-400.0,0.00013808,2]
[360870992,1747090260294,-400.0,0.00013808,2]
[360870993,1747090260304,-419.01348705,0.00013808,2]
[360870994,1747090260314,-400.0,0.00013808,2]
[360870995,1747090260323,-400.0,0.00013808,2]
[360870996,1747090260334,-250.26,0.00013808,2]
[360870997,1747090260343,-400.0,0.00013808,2]
[360870998,1747090260353,-1888.25,0.00013808,2]
[360870999,1747090260363,-400.0,0.00013808,2]
[360871000,1747090260373,-400.0,0.00013808,2]
[360871001,1747090260383,-598.67,0.00013808,2]
[360871002,1747090260392,-1883.81,0.00013808,2]
[360871003,1747090260401,-988.13,0.00013808,2]
[360871004,1747090260411,-400.0,0.00013808,2]
[360871005,1747090260420,-1219.37,0.00013808,2]
[360871006,1747090260430,-400.0,0.00013808,2]
[360871007,1747090260439,-396.52138242,0.00013808,2]
[360871008,1747090260448,-491.59,0.00013808,2]
[360871009,1747090260458,-674.12,0.00013808,2]
[360871010,1747090260467,-1000.0,0.00013808,2]
[360871011,1747090260476,-433.79,0.00013808,2]
[360871012,1747090260486,-1174.28,0.00013808,2]
[360871013,1747090260495,-418.1,0.00013808,2]
[360871014,1747090260504,-503.82,0.00013808,2]
[360871015,1747090260514,-400.0,0.00013808,2]
[360871016,1747090260524,-1144.55,0.00013808,2]
[360871017,1747090260533,-1062.2,0.00013808,2]
[360871018,1747090260543,-400.0,0.00013808,2]
[360871019,1747090260552,-423.45,0.00013808,2]
[360871020,1747090260561,-155.12275606,0.00013808,2]
[360871021,1747090260570,-400.0,0.00013808,2]
[360871022,1747090260580,-210.30888191,0.00013808,2]
[360871023,1747090260589,-400.0,0.00013808,2]
[360871024,1747090260598,-400.0,0.00013808,2]
[360871025,1747090260607,-609.33,0.00013808,2]
[360871026,1747090260617,-647.84,0.00013808,2]
[360871027,1747090260627,-385.29462078,0.00013808,2]
[360871028,1747090260636,-400.0,0.00013808,2]
[360871029,1747090260646,-649.86,0.00013808,2]
[360871030,1747090260655,-1328.87,0.00013808,2]
[360871031,1747090260665,-400.0,0.00013808,2]
[360871032,1747090260674,-548.63,0.00013808,2]
[360871033,1747090260684,-400.0,0.00013808,2]
[360871034,1747090260694,-403.82,0.00013808,2]
[360871035,1747090260704,-400.0,0.00013808,2]
[360871036,1747090260713,-1115.3,0.00013808,2]
[360871037,1747090260724,-510.53,0.00013808,2]
[360871038,1747090260734,-400.0,0.00013808,2]
[360871039,1747090260743,-400.0,0.00013808,2]
[360871040,1747090260752,-400.0,0.00013808,2]
[360871041,1747090260762,-408.01574976,0.00013808,2]
[360871042,1747090260771,-400.0,0.00013808,2]
[360871043,1747090260781,-400.0,0.00013808,2]
[360871044,1747090260790,-400.0,0.00013808,2]
[360871045,1747090260799,-947.34,0.00013808,2]
[360871046,1747090260808,-400.0,0.00013808,2]
[360871047,1747090260817,-473.1,0.00013808,2]
[360871048,1747090260826,-573.39,0.00013808,2]
[360871049,1747090260836,-1884.67,0.00013808,2]
[360871050,1747090260892,-400.0,0.00013808,2]
[360871051,1747090260902,-438.1506296,0.00013808,2]
[360871052,1747090260911,-465.16,0.00013808,2]
[360871053,1747090260920,-517.36822086,0.00013808,2]
[360871054,1747090260929,-400.0,0.00013808,2]
[360871055,1747090260938,-400.0,0.00013808,2]
[360871056,1747090260947,-400.0,0.00013808,2]
[360871057,1747090260956,-400.0,0.00013808,2]
[360871058,1747090260965,-1107.81,0.00013808,2]
[360871059,1747090260974,-400.0,0.00013808,2]
[360871060,1747090260984,-400.0,0.00013808,2]
[360871061,1747090260994,-400.0,0.00013808,2]
[360871062,1747090261005,-1826.33,0.00013808,2]
[360871063,1747090261016,-400.0,0.00013808,2]
[360871064,1747090261025,-400.0,0.00013808,2]
[360871065,1747090261035,-400.0,0.00013808,2]
[360871066,1747090261045,-400.0,0.00013808,2]
[360871067,1747090261054,-400.0,0.00013808,2]
[360871068,1747090261064,-479.61,0.00013808,2]
[360871069,1747090261074,-394.91807322,0.00013808,2]
[360871070,1747090261085,-400.0,0.00013808,2]
[360871071,1747090261094,-1181.47,0.00013808,2]
[360871072,1747090261103,-1424.62,0.00013808,2]
[360871073,1747090261112,-400.0,0.00013808,2]
[360871074,1747090261122,-2632.32,0.00013808,2]
[360871075,1747090261132,-400.0,0.00013808,2]
[360871076,1747090261142,-400.0,0.00013808,2]
[360871077,1747090261152,-830.84,0.00013808,2]
[360871078,1747090261162,-400.0,0.00013808,2]
[360871079,1747090261172,-400.0,0.00013808,2]
[360871080,1747090261182,-1276.5,0.00013808,2]
[360871081,1747090261191,-400.0,0.00013808,2]
[360871082,1747090261201,-405.17,0.00013808,2]
[360871083,1747090261211,-400.0,0.00013808,2]
[360871084,1747090261220,-609.72,0.00013808,2]
[360871085,1747090261230,-3091.33,0.00013808,2]
[360871086,1747090261239,-400.0,0.00013808,2]
[360871087,1747090261249,-400.0,0.00013808,2]
[360871088,1747090261259,-763.58,0.00013808,2]
[360871089,1747090261269,-400.0,0.00013808,2]
[360871090,1747090261279,-366.26,0.00013808,2]
[360871091,1747090261288,-400.0,0.00013808,2]
[360871092,1747090261298,-400.0,0.00013808,2]
[360871093,1747090261307,-2781.29,0.00013808,2]
[360871094,1747090261316,-400.0,0.00013808,2]
[360871095,1747090261326,-400.0,0.00013808,2]
[360871096,1747090261335,-400.0,0.00013808,2]
[360871097,1747090261344,-400.0,0.00013808,2]
[360871098,1747090261354,-2077.21,0.00013808,2]
[360871099,1747090261364,-400.0,0.00013808,2]
[360871100,1747090261373,-400.0,0.00013808,2]
[360871101,1747090261383,-400.0,0.00013808,2]
[360871102,1747090261392,-400.0,0.00013808,2]
[360871103,1747090261402,-472.53495952,0.00013808,2]
[360871104,1747090261411,-400.0,0.00013808,2]
[360871105,1747090261420,-471.09,0.00013808,2]
[360871106,1747090261429,-400.0,0.00013808,2]
[360871107,1747090261438,-400.0,0.00013808,2]
[360871108,1747090261447,-235.0658445,0.00013808,2]
[360871109,1747090261457,-400.0,0.00013808,2]
[360871110,1747090261466,-400.0,0.00013808,2]
[360871111,1747090261476,-400.0,0.00013808,2]
[360871112,1747090261485,-2887.32,0.00013808,2]
[360871113,1747090261494,-400.0,0.00013808,2]
[360871114,1747090261503,-501.45,0.00013808,2]
[360871115,1747090261512,-400.0,0.00013808,2]
[360871116,1747090261521,-400.0,0.00013808,2]
[360871117,1747090261530,-400.0,0.00013808,2]
[360871118,1747090261539,-400.0,0.00013808,2]
[360871119,1747090261548,-400.0,0.00013808,2]
[360871120,1747090261557,-42296.92,0.00013808,2]
[360871121,1747090261566,-579.81,0.00013808,2]
[360871122,1747090261576,-400.0,0.00013808,2]
[360871123,1747090261585,-541.25,0.00013808,2]
[360871124,1747090261595,-403.37,0.00013808,2]
[360871125,1747090261604,-400.0,0.00013808,2]
[360871126,1747090261614,-498.85,0.00013808,2]
[360871127,1747090261623,-400.0,0.00013808,2]
[360871128,1747090261633,-4777.4,0.00013808,2]
[360871129,1747090261643,-400.0,0.00013808,2]
[360871130,1747090261652,-400.0,0.00013808,2]
[360871131,1747090261663,-416.48,0.00013808,2]
[360871132,1747090261674,-1091.07,0.00013808,2]
[360871133,1747090261684,-400.0,0.00013808,2]
[360871134,1747090261693,-400.0,0.00013808,2]
[360871135,1747090261704,-9419.15,0.00013808,2]
[360871136,1747090261713,-210.553483,0.00013808,2]
[360871137,1747090261723,-954.11,0.00013808,2]
[360871138,1747090261732,-3455.79,0.00013808,2]
[360871139,1747090261741,-57883.36,0.00013808,2]
[360871140,1747090261750,-400.0,0.00013808,2]
[360871141,1747090261759,-400.0,0.00013808,2]
[360871142,1747090261769,-401.56,0.00013808,2]
[360871143,1747090261778,-400.0,0.00013808,2]
[360871144,1747090261787,-252.43,0.00013808,2]
[360871145,1747090261796,-210.553482,0.00013808,2]
[360871146,1747090261806,-400.0,0.00013808,2]
[360871147,1747090261815,-517.94718911,0.00013808,2]
[360871148,1747090261824,-400.0,0.00013808,2]
[360871149,1747090261834,-400.0,0.00013808,2]
[360871150,1747090261843,-400.0,0.00013808,2]
[360871151,1747090261853,-192.75326272,0.00013808,2]
[360871152,1747090261862,-400.0,0.00013808,2]
[360871153,1747090261872,-400.0,0.00013808,2]
[360871154,1747090261883,-400.0,0.00013808,2]
[360871155,1747090261892,-400.0,0.00013808,2]
[360871156,1747090261902,-694.22,0.00013808,2]
[360871157,1747090261911,-1245.08,0.00013808,2]
[360871158,1747090261922,-400.0,0.00013808,2]
[360871159,1747090261933,-892.76,0.00013808,2]
[360871160,1747090261943,-737.8,0.00013808,2]
[360871161,1747090261954,-400.0,0.00013808,2]
[360871162,1747090261963,-1619.34,0.00013808,2]
[360871163,1747090261973,-400.0,0.00013808,2]
[360871164,1747090261982,-400.0,0.00013808,2]
[360871165,1747090261991,-400.0,0.00013808,2]
[360871166,1747090262004,-400.0,0.00013808,2]
[360871167,1747090262014,-400.0,0.00013808,2]
[360871168,1747090262024,-400.0,0.00013808,2]
[360871169,1747090262033,-400.0,0.00013808,2]
[360871170,1747090262043,-400.0,0.00013808,2]
[360871171,1747090262053,-1801.97,0.00013808,2]
[360871172,1747090262063,-1735.12,0.00013808,2]
[360871173,1747090262072,-169.69575812,0.00013808,2]
[360871174,1747090262084,-1502.36,0.00013808,2]
[360871175,1747090262094,-1950.07,0.00013808,2]
[360871176,1747090262104,-400.0,0.00013808,2]
[360871177,1747090262114,-1300.57,0.00013808,2]
[360871178,1747090262124,-400.0,0.00013808,2]
[360871179,1747090262134,-400.0,0.00013808,2]
[360871180,1747090262144,-774.87,0.00013808,2]
[360871181,1747090262154,-400.0,0.00013808,2]
[360871182,1747090262164,-400.0,0.00013808,2]
[360871183,1747090262174,-400.0,0.00013808,2]
[360871184,1747090262187,-2534.03,0.00013808,2]
[360871185,1747090262196,-400.0,0.00013808,2]
[360871186,1747090262206,-400.0,0.00013808,2]
[360871187,1747090262217,-8925.8,0.00013808,2]
[360871188,1747090262227,-400.0,0.00013808,2]
[360871189,1747090262237,-400.0,0.00013808,2]
[360871190,1747090262247,-400.0,0.00013808,2]
[360871191,1747090262260,-501.86299988,0.00013808,2]
[360871192,1747090262272,-196.0,0.00013808,2]
[360871193,1747090262282,-1857.61,0.00013835,2]
[360871194,1747090262292,-930.0,0.00013837,2]
[360871195,1747090262302,-1304.0,0.00013837,2]
[360871196,1747090262312,-628.0,0.00013837,2]
[360871197,1747090262322,-798.0,0.00013837,2]
[360871198,1747090262332,-584.0,0.00013837,2]
[360871199,1747090262341,-1249.0,0.00013837,2]
[360871200,1747090262351,-1456.0,0.00013837,2]
[360871201,1747090262361,-918.0,0.00013837,2]
[360871202,1747090262370,-552.0,0.00013837,2]
[360871203,1747090262380,-836.0,0.00013837,2]
[360871204,1747090262390,-879.0,0.00013837,2]
[360871205,1747090262399,-6818.0,0.00013837,2]
[360871206,1747090262409,-4029.0,0.00013837,2]
[360871207,1747090262419,-271.688,0.00013837,2]
[360871208,1747090262429,-150.0,0.00013837,2]
[360871209,1747090262438,-150.0,0.00013848,2]
[360871210,1747090262448,-245.221,0.00013848,2]
[360871211,1747090262459,-163.9009405,0.00013858,2]
[360871212,1747090262469,-220.41747261,0.00013861,2]
[360871213,1747090262478,-1857.61,0.00013862,2]
[360871214,1747090262488,-500.0,0.00013862,2]
[360871215,1747090262497,-500.0,0.00013862,2]
[360871216,1747090262507,-151.0,0.00013863,2]
[360871217,1747090262518,-151.0,0.00013863,2]
[360871218,1747090262528,-151.0,0.00013863,2]
[360871219,1747090262538,-369.89,0.00013863,2]
[360871220,1747090262548,-400.0,0.00013863,2]
[360871221,1747090262558,-400.0,0.00013863,2]
[360871222,1747090262568,-400.0,0.00013863,2]
[360871223,1747090262578,-400.0,0.00013863,2]
[360871224,1747090262588,-400.0,0.00013863,2]
[360871225,1747090262598,-400.0,0.00013863,2]
[360871226,1747090262607,-380.72992552,0.00013863,2]
[360871227,1747090262617,-545.53208863,0.00013863,2]
[360871228,1747090262626,-400.0,0.00013863,2]
[360871229,1747090262636,-400.0,0.00013863,2]
[360871230,1747090262645,-400.0,0.00013863,2]
[360871231,1747090262655,-400.0,0.00013863,2]
[360871232,1747090262665,-400.0,0.00013863,2]
[360871233,1747090262675,-400.0,0.00013863,2]
[360871234,1747090262684,-400.0,0.00013863,2]
[360871235,1747090262694,-400.0,0.00013863,2]
[360871236,1747090262704,-400.0,0.00013863,2]
[360871237,1747090262714,-400.0,0.00013863,2]
[360871238,1747090262723,-400.0,0.00013863,2]
[360871239,1747090262732,-400.0,0.00013863,2]
[360871240,1747090262741,-400.0,0.00013863,2]
[360871241,1747090262750,-400.0,0.00013863,2]
[360871242,1747090262760,-400.0,0.00013863,2]
[360871243,1747090262769,-400.0,0.00013863,2]
[360871244,1747090262779,-400.0,0.00013863,2]
[360871245,1747090262788,-400.0,0.00013863,2]
[360871246,1747090262797,-400.0,0.00013863,2]
[360871247,1747090262807,-205.84192024,0.00013863,2]
[360871248,1747090262816,-883.65,0.00013863,2]
[360871249,1747090262825,-400.0,0.00013863,2]
[360871250,1747090262835,-400.0,0.00013863,2]
[360871251,1747090262844,-1364.47,0.00013863,2]
[360871252,1747090262855,-400.0,0.00013863,2]
[360871253,1747090262864,-400.0,0.00013863,2]
[360871254,1747090262874,-534.9,0.00013863,2]
[360871255,1747090262883,-403.02,0.00013863,2]
[360871256,1747090262893,-400.0,0.00013863,2]
[360871257,1747090262902,-626.91,0.00013863,2]
[360871258,1747090262912,-416.21,0.00013863,2]
[360871259,1747090262921,-698.81,0.00013863,2]
[360871260,1747090262931,-400.0,0.00013863,2]
[360871261,1747090262940,-400.0,0.00013863,2]
[360871262,1747090262950,-615.59,0.00013863,2]
[360871263,1747090262960,-400.0,0.00013863,2]
[360871264,1747090262969,-610.58,0.00013863,2]
[360871265,1747090262979,-400.0,0.00013863,2]
[360871266,1747090262988,-1281.75,0.00013863,2]
[360871267,1747090263000,-1077.2,0.00013863,2]
[360871268,1747090263010,-400.0,0.00013863,2]
[360871269,1747090263021,-400.0,0.00013863,2]
[360871270,1747090263031,-450.47,0.00013863,2]
[360871271,1747090263041,-400.0,0.00013863,2]
[360871272,1747090263050,-463.72,0.00013863,2]
[360871273,1747090263060,-400.0,0.00013863,2]
[360871274,1747090263069,-400.0,0.00013863,2]
[360871275,1747090263079,-400.0,0.00013863,2]
[360871276,1747090263089,-400.0,0.00013863,2]
[360871277,1747090263100,-400.0,0.00013863,2]
[360871278,1747090263110,-400.0,0.00013863,2]
[360871279,1747090263120,-235.1,0.00013863,2]
[360871280,1747090263130,-400.0,0.00013863,2]
[360871281,1747090263140,-400.0,0.00013863,2]
[360871282,1747090263149,-1108.94,0.00013863,2]
[360871283,1747090263159,-400.0,0.00013863,2]
[360871284,1747090263169,-755.78,0.00013863,2]
[360871285,1747090263179,-400.0,0.00013863,2]
[360871286,1747090263188,-400.0,0.00013863,2]
[360871287,1747090263198,-400.0,0.00013863,2]
[360871288,1747090263208,-787.18,0.00013863,2]
[360871289,1747090263218,-400.0,0.00013863,2]
[360871290,1747090263227,-400.0,0.00013863,2]
[360871291,1747090263237,-400.0,0.00013863,2]
[360871292,1747090263246,-400.0,0.00013863,2]
[360871293,1747090263256,-499.68,0.00013863,2]
[360871294,1747090263266,-400.0,0.00013863,2]
[360871295,1747090263276,-936.95,0.00013863,2]
[360871296,1747090263286,-400.0,0.00013863,2]
[360871297,1747090263296,-400.0,0.00013863,2]
[360871298,1747090263306,-848.11,0.00013863,2]
[360871299,1747090263316,-530.32217106,0.00013863,2]
[360871300,1747090263326,-1083.17,0.00013863,2]
[360871301,1747090263336,-400.0,0.00013863,2]
[360871302,1747090263345,-400.0,0.00013863,2]
[360871303,1747090263355,-926.94,0.00013863,2]
[360871304,1747090263365,-420.95,0.00013863,2]
[360871305,1747090263374,-400.0,0.00013863,2]
[360871306,1747090263384,-400.0,0.00013863,2]
[360871307,1747090263394,-400.0,0.00013863,2]
[360871308,1747090263403,-603.5,0.00013863,2]
[360871309,1747090263413,-576.3,0.00013863,2]
[360871310,1747090263423,-400.0,0.00013863,2]
[360871311,1747090263433,-400.0,0.00013863,2]
[360871312,1747090263443,-190.20569438,0.00013863,2]
[360871313,1747090263453,-400.0,0.00013863,2]
[360871314,1747090263463,-400.0,0.00013863,2]
[360871315,1747090263473,-400.0,0.00013863,2]
[360871316,1747090263484,-400.0,0.00013863,2]
[360871317,1747090263494,-400.0,0.00013863,2]
[360871318,1747090263503,-400.0,0.00013863,2]
[360871319,1747090263513,-400.0,0.00013863,2]
[360871320,1747090263524,-400.0,0.00013863,2]
[360871321,1747090263534,-400.0,0.00013863,2]
[360871322,1747090263544,-400.0,0.00013863,2]
[360871323,1747090263555,-400.0,0.00013863,2]
[360871324,1747090263565,-225.79209405,0.00013863,2]
[360871325,1747090263575,-400.0,0.00013863,2]
[360871326,1747090263585,-400.0,0.00013863,2]
[360871327,1747090263595,-501.55,0.00013863,2]
[360871328,1747090263605,-400.0,0.00013863,2]
[360871329,1747090263615,-400.0,0.00013863,2]
[360871330,1747090263624,-400.0,0.00013863,2]
[360871331,1747090263634,-400.0,0.00013863,2]
[360871332,1747090263645,-400.0,0.00013863,2]
[360871333,1747090263655,-400.0,0.00013863,2]
[360871334,1747090263664,-400.0,0.00013863,2]
[360871335,1747090263675,-400.0,0.00013863,2]
[360871336,1747090263684,-400.0,0.00013863,2]
[360871337,1747090263694,-400.0,0.00013863,2]
[360871338,1747090263704,-400.0,0.00013863,2]
[360871339,1747090263715,-400.0,0.00013863,2]
[360871340,1747090263725,-400.0,0.00013863,2]
[360871341,1747090263735,-496.33394033,0.00013863,2]
[360871342,1747090263745,-400.0,0.00013863,2]
[360871343,1747090263755,-400.0,0.00013863,2]
[360871344,1747090263765,-400.0,0.00013863,2]
[360871345,1747090263775,-400.0,0.00013863,2]
[360871346,1747090263785,-400.0,0.00013863,2]
[360871347,1747090263795,-400.0,0.00013863,2]
[360871348,1747090263932,-400.0,0.00013863,2]
[360871349,1747090263961,-22191.74,0.00013863,2]
[360871350,1747090263970,-1077.72,0.00013863,2]
[360871351,1747090263979,-400.0,0.00013863,2]
[360871352,1747090263989,-280.85,0.00013863,2]
[360871353,1747090263999,-400.0,0.00013863,2]
[360871354,1747090264012,-400.0,0.00013863,2]
[360871355,1747090264021,-1242.42,0.00013863,2]
[360871356,1747090264031,-8204.41,0.00013863,2]
[360871357,1747090264040,-1722.69,0.00013863,2]
[360871358,1747090264049,-400.0,0.00013863,2]